Workbook

Sheet 1.Conjunto de datos (remuneraci
A1: Numeración | B1: PUESTO INSTITUCIONAL | C1: Régimen laboral al que pertenece | D1: Número de partida presupuestaria | E1: Grado jerárquico o escala al que pertenece el puesto | F1: Remuneración mensual unificada | G1: Remuneración unificada (anual) | H1: Décimo Tercera Remuneración | I1: Décima Cuarta Remuneración | J1: Horas suplementarias y extraordinarias | K1: Encargos y subrogaciones | L1: Total ingresos adicionales
A2: 1 | B2: PROCURADOR SINDICO | C2: 05-SERVIDOR/FUNCIONARIO PÚBLICO/OTROS REGÍMENES SECTOR PÚBLICO | D2: 5.1.01.05 | E2: N/A | F2: 1670.00 | G2: =F2*12 -> 20,040.00 | H2: =F2/12 -> 139.17 | I2: =470/12 -> 39.17 | J2: 0.00 | K2: 0.00 | L2: =F2+H2+I2 -> 1848.33
A3: 2 | B3: CONCEJAL URBANO | C3: 05-SERVIDOR/FUNCIONARIO PÚBLICO/OTROS REGÍMENES SECTOR PÚBLICO | D3: 5.1.01.05 | E3: J/N | F3: 1750.00 | G3: 21,000.00 | H3: 145.83 | I3: =470/12 -> 39.17 | J3: 0.00 | K3: 0.00 | L3: 1935.00
A4: 3 | B4: MIEMBRO 1 DE LA JUNTA CANTONAL DE PROTECCION DE DERECHOS | C4: 05-SERVIDOR/FUNCIONARIO PÚBLICO/OTROS REGÍMENES SECTOR PÚBLICO | D4: 7.1.05.10 | E4: N/A | F4: 820.00 | G4: 9,840.00 | H4: 68.33 | I4: 39.17 | J4: 0.00 | K4: 0.00 | L4: 927.50
A5: 4 | B5: ASISTENTE TÉCNICO DE COMUNICACIÓN Y DISEÑO GRÁFICO | C5: 05-SERVIDOR/FUNCIONARIO PÚBLICO/OTROS REGÍMENES SECTOR PÚBLICO | D5: 7.1.05.10 | E5: N/A | F5: 570.00 | G5: 6,840.00 | H5: 47.50 | I5: 39.17 | J5: 0.00 | K5: 0.00 | L5: 656.67
A6: 5 | B6: ANALISTA DE TRABAJO SOCIAL | C6: 05-SERVIDOR/FUNCIONARIO PÚBLICO/OTROS REGÍMENES SECTOR PÚBLICO | D6: 5.1.01.05 | E6: N/A | F6: 820.00 | G6: 9,840.00 | H6: 68.33 | I6: 39.17 | J6: 0.00 | K6: 0.00 | L6: 927.50
A7: 6 | B7: CUIDADORA | C7: 05-SERVIDOR/FUNCIONARIO PÚBLICO/OTROS REGÍMENES SECTOR PÚBLICO | D7: 7.1.05.10 | E7: N/A | F7: 675.00 | G7: 8,100.00 | H7: 56.25 | I7: 39.17 | J7: 0.00 | K7: 0.00 | L7: 770.42
A8: 7 | B8: ASISTENTE TECNICO DE PRESUPUESTO | C8: 05-SERVIDOR/FUNCIONARIO PÚBLICO/OTROS REGÍMENES SECTOR PÚBLICO | D8: 5.1.01.05 | E8: N/A | F8: 755.00 | G8: 9,060.00 | H8: 62.92 | I8: 39.17 | J8: 0.00 | K8: 0.00 | L8: 857.08
A9: 8 | B9: ASISTENTE ADMINISTRATIVO DEL CENTRO DE FAENAMIENTO | C9: 05-SERVIDOR/FUNCIONARIO PÚBLICO/OTROS REGÍMENES SECTOR PÚBLICO | D9: 7.1.05.10 | E9: N/A | F9: 622.00 | G9: 7,464.00 | H9: 51.83 | I9: 39.17 | J9: 0.00 | K9: 0.00 | L9: 713.00
A10: 9 | B10: ASISTENTE TECNICO DE AVALUOS Y CATASTROS | C10: 05-SERVIDOR/FUNCIONARIO PÚBLICO/OTROS REGÍMENES SECTOR PÚBLICO | D10: 7.1.05.10 | E10: N/A | F10: 755.00 | G10: 9,060.00 | H10: 62.92 | I10: 39.17 | J10: 0.00 | K10: 0.00 | L10: 857.08
A11: 10 | B11: ASISTENTE ADMINISTRATIVO DE RENTAS | C11: 05-SERVIDOR/FUNCIONARIO PÚBLICO/OTROS REGÍMENES SECTOR PÚBLICO | D11: 5.1.01.05 | E11: N/A | F11: 622.00 | G11: 7,464.00 | H11: 51.83 | I11: 39.17 | J11: 0.00 | K11: 0.00 | L11: 713.00
A12: 11 | B12: DIGITALIZADOR DE LA UTMTTTSV | C12: 05-SERVIDOR/FUNCIONARIO PÚBLICO/OTROS REGÍMENES SECTOR PÚBLICO | D12: 7.1.05.10 | E12: N/A | F12: 622.00 | G12: 7,464.00 | H12: 51.83 | I12: 39.17 | J12: 0.00 | K12: 0.00 | L12: 713.00
A13: 12 | B13: EDUCADORA CDI ROSARIO VALLEJO (CHUNCHI) | C13: 05-SERVIDOR/FUNCIONARIO PÚBLICO/OTROS REGÍMENES SECTOR PÚBLICO | D13: 7.1.05.10 | E13: N/A | F13: 470.00 | G13: 5,640.00 | H13: 39.17 | I13: 39.17 | J13: 0.00 | K13: 0.00 | L13: 548.33
A14: 13 | B14: CUIDADORA | C14: 05-SERVIDOR/FUNCIONARIO PÚBLICO/OTROS REGÍMENES SECTOR PÚBLICO | D14: 7.1.05.10 | E14: N/A | F14: 675.00 | G14: 8,100.00 | H14: 56.25 | I14: 39.17 | J14: 0.00 | K14: 0.00 | L14: 770.42
A15: 14 | B15: MEDICO JEFE DE LA USO | C15: 05-SERVIDOR/FUNCIONARIO PÚBLICO/OTROS REGÍMENES SECTOR PÚBLICO | D15: 5.1.01.05 | E15: N/A | F15: 1110.00 | G15: 13,320.00 | H15: 92.50 | I15: 39.17 | J15: 0.00 | K15: 0.00 | L15: 1241.67
A16: 15 | B16: PROSECRETARIA | C16: 05-SERVIDOR/FUNCIONARIO PÚBLICO/OTROS REGÍMENES SECTOR PÚBLICO | D16: 5.1.01.05 | E16: N/A | F16: 622.00 | G16: 7,464.00 | H16: 51.83 | I16: 39.17 | J16: 0.00 | K16: 0.00 | L16: 713.00
A17: 16 | B17: ASITENTE ADMINISTRATIVO DEL CEMENTERIO | C17: 05-SERVIDOR/FUNCIONARIO PÚBLICO/OTROS REGÍMENES SECTOR PÚBLICO | D17: 7.1.05.10 | E17: N/A | F17: 622.00 | G17: 7,464.00 | H17: 51.83 | I17: 39.17 | J17: 0.00 | K17: 0.00 | L17: 713.00
A18: 17 | B18: ANALISTA TÉCNICO PARA DIRECCIÓN DE OOPP | C18: 05-SERVIDOR/FUNCIONARIO PÚBLICO/OTROS REGÍMENES SECTOR PÚBLICO | D18: 7.1.05.10 | E18: N/A | F18: 820.00 | G18: 9,840.00 | H18: 68.33 | I18: 39.17 | J18: 0.00 | K18: 0.00 | L18: 927.50
A19: 18 | B19: PROMOTOR SOCIAL ATENCION DOMICILIARIA PERSONAS ADULTAS | C19: 05-SERVIDOR/FUNCIONARIO PÚBLICO/OTROS REGÍMENES SECTOR PÚBLICO | D19: 5.1.05.10 | E19: N/A | F19: 986.00 | G19: 11,832.00 | H19: 82.17 | I19: 39.17 | J19: 0.00 | K19: 0.00 | L19: 1107.33
A20: 19 | B20: CUIDADORA | C20: 05-SERVIDOR/FUNCIONARIO PÚBLICO/OTROS REGÍMENES SECTOR PÚBLICO | D20: 7.1.05.10 | E20: N/A | F20: 675.00 | G20: 8,100.00 | H20: 56.25 | I20: 39.17 | J20: 0.00 | K20: 0.00 | L20: 770.42
A21: 20 | B21: ASISTENTE ADMINISTRATIVO DE TURISMO | C21: 05-SERVIDOR/FUNCIONARIO PÚBLICO/OTROS REGÍMENES SECTOR PÚBLICO | D21: 7.1.05.10 | E21: N/A | F21: 622.00 | G21: 7,464.00 | H21: 51.83 | I21: 39.17 | J21: 0.00 | K21: 0.00 | L21: 713.00
A22: 21 | B22: AUXILIAR ADM. SEGURIDAD Y SALUD OCUPACIONAL | C22: 05-SERVIDOR/FUNCIONARIO PÚBLICO/OTROS REGÍMENES SECTOR PÚBLICO | D22: 5.1.01.05 | E22: N/A | F22: 570.00 | G22: 6,840.00 | H22: 47.50 | I22: 39.17 | J22: 0.00 | K22: 0.00 | L22: 656.67
A23: 22 | B23: CUIDADORA | C23: 05-SERVIDOR/FUNCIONARIO PÚBLICO/OTROS REGÍMENES SECTOR PÚBLICO | D23: 7.1.05.10 | E23: N/A | F23: 675.00 | G23: 8,100.00 | H23: 56.25 | I23: 39.17 | J23: 0.00 | K23: 0.00 | L23: 770.42
A24: 23 | B24: TERAPISTA FÍSICO | C24: 05-SERVIDOR/FUNCIONARIO PÚBLICO/OTROS REGÍMENES SECTOR PÚBLICO | D24: 7.1.05.10 | E24: N/A | F24: 986.00 | G24: 11,832.00 | H24: 82.17 | I24: 39.17 | J24: 0.00 | K24: 0.00 | L24: 1107.33
A25: 24 | B25: CONCEJAL URBANO | C25: 05-SERVIDOR/FUNCIONARIO PÚBLICO/OTROS REGÍMENES SECTOR PÚBLICO | D25: 5.1.01.05 | E25: J/N | F25: 1750.00 | G25: 21,000.00 | H25: 145.83 | I25: 39.17 | J25: 0.00 | K25: 0.00 | L25: 1935.00
A26: 25 | B26: DIRECTOR DE PLANIFICACIÓN, PATRIMONIO, AVALUOS Y CATASTROS | C26: 05-SERVIDOR/FUNCIONARIO PÚBLICO/OTROS REGÍMENES SECTOR PÚBLICO | D26: 7.1.01.05 | E26: N/A | F26: 1670.00 | G26: 20,040.00 | H26: 139.17 | I26: 39.17 | J26: 0.00 | K26: 0.00 | L26: 1848.33
A27: 26 | B27: MIEMBRO 2 DE LA JUNTA CANTONAL DE PROTECCION DE DERECHOS. | C27: 05-SERVIDOR/FUNCIONARIO PÚBLICO/OTROS REGÍMENES SECTOR PÚBLICO | D27: 7.1.05.10 | E27: N/A | F27: 755.00 | G27: 9,060.00 | H27: 62.92 | I27: 39.17 | J27: 0.00 | K27: 0.00 | L27: 857.08
A28: 27 | B28: COORDINADOR AMBIENTAL | C28: 05-SERVIDOR/FUNCIONARIO PÚBLICO/OTROS REGÍMENES SECTOR PÚBLICO | D28: 7.1.05.10 | E28: N/A | F28: 755.00 | G28: 9,060.00 | H28: 62.92 | I28: 39.17 | J28: 0.00 | K28: 0.00 | L28: 857.08
A29: 28 | B29: ASISTENTE ADMINISTRATIVO OOPP | C29: 05-SERVIDOR/FUNCIONARIO PÚBLICO/OTROS REGÍMENES SECTOR PÚBLICO | D29: 7.1.05.10 | E29: N/A | F29: 570.00 | G29: 6,840.00 | H29: 47.50 | I29: 39.17 | J29: 0.00 | K29: 0.00 | L29: 656.67
A30: 29 | B30: ASISTENTE TECNICO DE PROVEEDURIA | C30: 05-SERVIDOR/FUNCIONARIO PÚBLICO/OTROS REGÍMENES SECTOR PÚBLICO | D30: 5.1.05.10 | E30: N/A | F30: 755.00 | G30: 9,060.00 | H30: 62.92 | I30: 39.17 | J30: 0.00 | K30: 0.00 | L30: 857.08
A31: 30 | B31: RECAUDADOR 1 | C31: 05-SERVIDOR/FUNCIONARIO PÚBLICO/OTROS REGÍMENES SECTOR PÚBLICO | D31: 5.1.01.05 | E31: N/A | F31: 755.00 | G31: 9,060.00 | H31: 62.92 | I31: 39.17 | J31: 0.00 | K31: 0.00 | L31: 857.08
A32: 31 | B32: RELACIONADOR PUBLICO | C32: 05-SERVIDOR/FUNCIONARIO PÚBLICO/OTROS REGÍMENES SECTOR PÚBLICO | D32: 5.1.01.05 | E32: N/A | F32: 820.00 | G32: 9,840.00 | H32: 68.33 | I32: 39.17 | J32: 0.00 | K32: 0.00 | L32: 927.50
A33: 32 | B33: ANALISTA EN DESARROLLO COMUNITARIO | C33: 05-SERVIDOR/FUNCIONARIO PÚBLICO/OTROS REGÍMENES SECTOR PÚBLICO | D33: 7.1.01.05 | E33: N/A | F33: 820.00 | G33: 9,840.00 | H33: 68.33 | I33: 39.17 | J33: 0.00 | K33: 0.00 | L33: 927.50
A34: 33 | B34: ASISTENTE TÉCNICO DEL REGISTRO DE LA PROPIEDAD | C34: 05-SERVIDOR/FUNCIONARIO PÚBLICO/OTROS REGÍMENES SECTOR PÚBLICO | D34: 5.1.01.05 | E34: N/A | F34: 590.00 | G34: =F34*12 -> 7,080.00 | H34: =F34/12 -> 49.17 | I34: 39.17 | J34: 0.00 | K34: 0.00 | L34: =F34+H34+I34 -> 678.33
A35: 34 | B35: ANALISTA DE SISTEMAS | C35: 05-SERVIDOR/FUNCIONARIO PÚBLICO/OTROS REGÍMENES SECTOR PÚBLICO | D35: 5.1.01.05 | E35: N/A | F35: 820.00 | G35: 9,840.00 | H35: 68.33 | I35: 39.17 | J35: 0.00 | K35: 0.00 | L35: 927.50
A36: 35 | B36: AUXILIAR DE SERVICIOS | C36: 05-SERVIDOR/FUNCIONARIO PÚBLICO/OTROS REGÍMENES SECTOR PÚBLICO | D36: 5.1.01.06 | E36: N/A | F36: 470.00 | G36: 5,640.00 | H36: 39.17 | I36: 39.17 | J36: 0.00 | K36: 0.00 | L36: 548.33
A37: 36 | B37: CUIDADORA | C37: 05-SERVIDOR/FUNCIONARIO PÚBLICO/OTROS REGÍMENES SECTOR PÚBLICO | D37: 7.1.05.10 | E37: N/A | F37: 675.00 | G37: 8,100.00 | H37: 56.25 | I37: 39.17 | J37: 0.00 | K37: 0.00 | L37: 770.42
A38: 37 | B38: AUXILIAR DE LIMPIEZA | C38: 05-SERVIDOR/FUNCIONARIO PÚBLICO/OTROS REGÍMENES SECTOR PÚBLICO | D38: 7.1.05.10 | E38: N/A | F38: 470.00 | G38: 5,640.00 | H38: 39.17 | I38: 39.17 | J38: 0.00 | K38: 0.00 | L38: 548.33
A39: 38 | B39: ASISTENTE TECNICO DE RENTAS | C39: 05-SERVIDOR/FUNCIONARIO PÚBLICO/OTROS REGÍMENES SECTOR PÚBLICO | D39: 5.1.01.05 | E39: N/A | F39: 755.00 | G39: 9,060.00 | H39: 62.92 | I39: 39.17 | J39: 0.00 | K39: 0.00 | L39: 857.08
A40: 39 | B40: JEFE DE GESTIÓN AMBIENTAL RIESGOS, ARIDOS Y PETREOS | C40: 05-SERVIDOR/FUNCIONARIO PÚBLICO/OTROS REGÍMENES SECTOR PÚBLICO | D40: 7.1.01.05 | E40: N/A | F40: 1110.00 | G40: 13,320.00 | H40: 92.50 | I40: 39.17 | J40: 0.00 | K40: 0.00 | L40: 1241.67
A41: 40 | B41: AUXILIAR DE COCINA | C41: 05-SERVIDOR/FUNCIONARIO PÚBLICO/OTROS REGÍMENES SECTOR PÚBLICO | D41: 7.1.05.10 | E41: N/A | F41: 470.00 | G41: 5,640.00 | H41: 39.17 | I41: 39.17 | J41: 0.00 | K41: 0.00 | L41: 548.33
A42: 41 | B42: ASISTENTE ADMINISTRATIVO | C42: 05-SERVIDOR/FUNCIONARIO PÚBLICO/OTROS REGÍMENES SECTOR PÚBLICO | D42: 7.1.01.05 | E42: N/A | F42: 622.00 | G42: 7,464.00 | H42: 51.83 | I42: 39.17 | J42: 0.00 | K42: 0.00 | L42: 713.00
A43: 42 | B43: AUXILIAR DE SERVICIOS | C43: 05-SERVIDOR/FUNCIONARIO PÚBLICO/OTROS REGÍMENES SECTOR PÚBLICO | D43: 7.1.05.10 | E43: N/A | F43: 470.00 | G43: 5,640.00 | H43: 39.17 | I43: 39.17 | J43: 0.00 | K43: 0.00 | L43: 548.33
A44: 43 | B44: AYUDANTE DE MAQUINA | C44: 05-SERVIDOR/FUNCIONARIO PÚBLICO/OTROS REGÍMENES SECTOR PÚBLICO | D44: 5.1.01.06 | E44: N/A | F44: 470.00 | G44: 5,640.00 | H44: 39.17 | I44: 39.17 | J44: 0.00 | K44: 0.00 | L44: 548.33
A45: 44 | B45: ASISTENTE ADMINISTRATIVO REG PROPIEDAD | C45: 05-SERVIDOR/FUNCIONARIO PÚBLICO/OTROS REGÍMENES SECTOR PÚBLICO | D45: 5.1.01.05 | E45: N/A | F45: 622.00 | G45: 7,464.00 | H45: 51.83 | I45: 39.17 | J45: 0.00 | K45: 0.00 | L45: 713.00
A46: 45 | B46: ASISTENTE TECNICO DE CONTABILIDAD | C46: 05-SERVIDOR/FUNCIONARIO PÚBLICO/OTROS REGÍMENES SECTOR PÚBLICO | D46: 5.1.01.05 | E46: N/A | F46: 755.00 | G46: 9,060.00 | H46: 62.92 | I46: 39.17 | J46: 0.00 | K46: 0.00 | L46: 857.08
A47: 46 | B47: MECANICO REVISOR - ASISTENTE TÉCNICO DE REVISIÓN VEHÍCULAR | C47: 05-SERVIDOR/FUNCIONARIO PÚBLICO/OTROS REGÍMENES SECTOR PÚBLICO | D47: 7.1.05.10 | E47: N/A | F47: 755.00 | G47: 9,060.00 | H47: 62.92 | I47: 39.17 | J47: 0.00 | K47: 0.00 | L47: 857.08
A48: 47 | B48: ALCALDE DEL GAD CHUNCHI | C48: 05-SERVIDOR/FUNCIONARIO PÚBLICO/OTROS REGÍMENES SECTOR PÚBLICO | D48: 5.1.01.05 | E48: J/A | F48: 3500.00 | G48: 42,000.00 | H48: 291.67 | I48: 39.17 | J48: 0.00 | K48: 0.00 | L48: 3830.83
A49: 48 | B49: EDUCADORA CDI SEMILLITAS DEL PUÑAY (LLAGOS) | C49: 05-SERVIDOR/FUNCIONARIO PÚBLICO/OTROS REGÍMENES SECTOR PÚBLICO | D49: 7.1.05.10 | E49: N/A | F49: 470.00 | G49: 5,640.00 | H49: 39.17 | I49: 39.17 | J49: 0.00 | K49: 0.00 | L49: 548.33
A50: 49 | B50: AUXILIAR ADMINISTRATIVO DE OBRAS PÚBLICAS | C50: 05-SERVIDOR/FUNCIONARIO PÚBLICO/OTROS REGÍMENES SECTOR PÚBLICO | D50: 7.1.05.10 | E50: N/A | F50: 570.00 | G50: 6,840.00 | H50: 47.50 | I50: 39.17 | J50: 0.00 | K50: 0.00 | L50: 656.67
A51: 50 | B51: ANALISTA DE PLANIFICACIÓN PATRIMONIO AVALUOS Y CATÁSTROS | C51: 05-SERVIDOR/FUNCIONARIO PÚBLICO/OTROS REGÍMENES SECTOR PÚBLICO | D51: 7.1.05.10 | E51: N/A | F51: 820.00 | G51: 9,840.00 | H51: 68.33 | I51: 39.17 | J51: 0.00 | K51: 0.00 | L51: 927.50
A52: 51 | B52: SECRETARIO MUNICIPAL | C52: 05-SERVIDOR/FUNCIONARIO PÚBLICO/OTROS REGÍMENES SECTOR PÚBLICO | D52: 5.1.01.05 | E52: N/A | F52: 1110.00 | G52: 13,320.00 | H52: 92.50 | I52: 39.17 | J52: 0.00 | K52: 0.00 | L52: 1241.67
A53: 52 | B53: ASISTENTE ADMINISTRATIVO FINANCIERO | C53: 05-SERVIDOR/FUNCIONARIO PÚBLICO/OTROS REGÍMENES SECTOR PÚBLICO | D53: 5.1.05.10 | E53: N/A | F53: 622.00 | G53: 7,464.00 | H53: 51.83 | I53: 39.17 | J53: 0.00 | K53: 0.00 | L53: 713.00
A54: 53 | B54: AUXILIAR ADMINISTRATIVA DE DESARROLLO AGROPECUARIO | C54: 05-SERVIDOR/FUNCIONARIO PÚBLICO/OTROS REGÍMENES SECTOR PÚBLICO | D54: 7.1.05.10 | E54: N/A | F54: 570.00 | G54: 6,840.00 | H54: 47.50 | I54: 39.17 | J54: 0.00 | K54: 0.00 | L54: 656.67
A55: 54 | B55: TERAPISTA OCUPACIONAL | C55: 05-SERVIDOR/FUNCIONARIO PÚBLICO/OTROS REGÍMENES SECTOR PÚBLICO | D55: 7.1.05.10 | E55: N/A | F55: 986.00 | G55: 11,832.00 | H55: 82.17 | I55: 39.17 | J55: 0.00 | K55: 0.00 | L55: 1107.33
A56: 55 | B56: AGENTE MUNICIPAL DE CONTROL | C56: 05-SERVIDOR/FUNCIONARIO PÚBLICO/OTROS REGÍMENES SECTOR PÚBLICO | D56: 5.1.01.06 | E56: N/A | F56: 528.00 | G56: 6,336.00 | H56: 44.00 | I56: 39.17 | J56: 0.00 | K56: 0.00 | L56: 611.17
A57: 56 | B57: PROMOTOR DELPROYECTO CIUDADES HERMANADAS NEWARK-NJ-CHUNCHI-ECUADOR | C57: 05-SERVIDOR/FUNCIONARIO PÚBLICO/OTROS REGÍMENES SECTOR PÚBLICO | D57: 7.1.05.10 | E57: N/A | F57: 470.00 | G57: 5,640.00 | H57: 39.17 | I57: 39.17 | J57: 0.00 | K57: 0.00 | L57: 548.33
A58: 57 | B58: CONTADORA | C58: 05-SERVIDOR/FUNCIONARIO PÚBLICO/OTROS REGÍMENES SECTOR PÚBLICO | D58: 5.1.01.05 | E58: N/A | F58: 920.00 | G58: 11,040.00 | H58: 76.67 | I58: 39.17 | J58: 0.00 | K58: 0.00 | L58: 1035.83
A59: 58 | B59: TÉCNICA EN PSICOLOGÍA EDUCATIVA ATENCIÓN A NIÑOS (AS)Y ADOLESCENTES CAPNNEE | C59: 05-SERVIDOR/FUNCIONARIO PÚBLICO/OTROS REGÍMENES SECTOR PÚBLICO | D59: 7.1.05.10 | E59: N/A | F59: 622.00 | G59: 7,464.00 | H59: 51.83 | I59: 39.17 | J59: 0.00 | K59: 0.00 | L59: 713.00
A60: 59 | B60: CUIDADORA | C60: 05-SERVIDOR/FUNCIONARIO PÚBLICO/OTROS REGÍMENES SECTOR PÚBLICO | D60: 7.1.05.10 | E60: N/A | F60: 675.00 | G60: 8,100.00 | H60: 56.25 | I60: 39.17 | J60: 0.00 | K60: 0.00 | L60: 770.42
A61: 60 | B61: PROMOTORA SOCIAL - PERSONAS ADULTAS MAYORES CON DISCAPACIDAD (PAM) | C61: 05-SERVIDOR/FUNCIONARIO PÚBLICO/OTROS REGÍMENES SECTOR PÚBLICO | D61: 7.1.05.10 | E61: N/A | F61: 986.00 | G61: 11,832.00 | H61: 82.17 | I61: 39.17 | J61: 0.00 | K61: 0.00 | L61: 1107.33
A62: 61 | B62: REGISTRADOR DE LA PROPIEDAD | C62: 05-SERVIDOR/FUNCIONARIO PÚBLICO/OTROS REGÍMENES SECTOR PÚBLICO | D62: 5.1.01.05 | E62: N/A | F62: 1920.00 | G62: 23,040.00 | H62: 160.00 | I62: 39.17 | J62: 0.00 | K62: 0.00 | L62: 2119.17
A63: 62 | B63: COMISARIO MUNICIPAL | C63: 05-SERVIDOR/FUNCIONARIO PÚBLICO/OTROS REGÍMENES SECTOR PÚBLICO | D63: 5.1.01.05 | E63: N/A | F63: 1110.00 | G63: 13,320.00 | H63: 92.50 | I63: 39.17 | J63: 0.00 | K63: 0.00 | L63: 1241.67
A64: 63 | B64: EDUCADORA CDI ROSARIO VALLEJO (CHUNCHI) | C64: 05-SERVIDOR/FUNCIONARIO PÚBLICO/OTROS REGÍMENES SECTOR PÚBLICO | D64: 7.1.05.10 | E64: N/A | F64: 470.00 | G64: 5,640.00 | H64: 39.17 | I64: 39.17 | J64: 0.00 | K64: 0.00 | L64: 548.33
A65: 64 | B65: MECÁNICO DEL TALLER MUNICIPAL | C65: 05-SERVIDOR/FUNCIONARIO PÚBLICO/OTROS REGÍMENES SECTOR PÚBLICO | D65: 7.1.05.10 | E65: N/A | F65: 755.00 | G65: 9,060.00 | H65: 62.92 | I65: 39.17 | J65: 0.00 | K65: 0.00 | L65: 857.08
A66: 65 | B66: CUIDADORA | C66: 05-SERVIDOR/FUNCIONARIO PÚBLICO/OTROS REGÍMENES SECTOR PÚBLICO | D66: 7.1.05.10 | E66: N/A | F66: 675.00 | G66: =F66*12 -> 8,100.00 | H66: =F66/12 -> 56.25 | I66: 39.17 | J66: 0.00 | K66: 0.00 | L66: =F66+H66+I66 -> 770.42
A67: 66 | B67: ASISTENTE ADMINISTRATIVO DE PLAZAS Y MERCADOS | C67: 05-SERVIDOR/FUNCIONARIO PÚBLICO/OTROS REGÍMENES SECTOR PÚBLICO | D67: 7.1.05.10 | E67: N/A | F67: 622.00 | G67: 7,464.00 | H67: 51.83 | I67: 39.17 | J67: 0.00 | K67: 0.00 | L67: 713.00
A68: 67 | B68: CUIDADORA | C68: 05-SERVIDOR/FUNCIONARIO PÚBLICO/OTROS REGÍMENES SECTOR PÚBLICO | D68: 7.1.05.10 | E68: N/A | F68: 675.00 | G68: 8,100.00 | H68: 56.25 | I68: 39.17 | J68: 0.00 | K68: 0.00 | L68: 770.42
A69: 68 | B69: ASISTENTE ADMINISTRATIVO AMBIENTAL | C69: 05-SERVIDOR/FUNCIONARIO PÚBLICO/OTROS REGÍMENES SECTOR PÚBLICO | D69: 7.1.05.10 | E69: N/A | F69: 622.00 | G69: 7,464.00 | H69: 51.83 | I69: 39.17 | J69: 0.00 | K69: 0.00 | L69: 713.00
A70: 69 | B70: CONCEJAL URBANO | C70: 05-SERVIDOR/FUNCIONARIO PÚBLICO/OTROS REGÍMENES SECTOR PÚBLICO | D70: 5.1.01.05 | E70: J/N | F70: 1750.00 | G70: 21,000.00 | H70: 145.83 | I70: 39.17 | J70: 0.00 | K70: 0.00 | L70: 1935.00
A71: 70 | B71: TRABAJADOR SOCIAL | C71: 05-SERVIDOR/FUNCIONARIO PÚBLICO/OTROS REGÍMENES SECTOR PÚBLICO | D71: 7.1.05.10 | E71: N/A | F71: 986.00 | G71: 11,832.00 | H71: 82.17 | I71: 39.17 | J71: 0.00 | K71: 0.00 | L71: 1107.33
A72: 71 | B72: ASISTENTE ADMINISTRATIVO 1 | C72: 05-SERVIDOR/FUNCIONARIO PÚBLICO/OTROS REGÍMENES SECTOR PÚBLICO | D72: 7.1.05.10 | E72: N/A | F72: 622.00 | G72: 7,464.00 | H72: 51.83 | I72: 39.17 | J72: 0.00 | K72: 0.00 | L72: 713.00
A73: 72 | B73: ASISTENTE ADMINISTRATIVO DE SECRETARIA Y ATENCION AL PUBLICO | C73: 05-SERVIDOR/FUNCIONARIO PÚBLICO/OTROS REGÍMENES SECTOR PÚBLICO | D73: 5.1.01.05 | E73: N/A | F73: 622.00 | G73: 7,464.00 | H73: 51.83 | I73: 39.17 | J73: 0.00 | K73: 0.00 | L73: 713.00
A74: 73 | B74: ASISTENTE TÉCNICO DE ALCALDÍA | C74: 05-SERVIDOR/FUNCIONARIO PÚBLICO/OTROS REGÍMENES SECTOR PÚBLICO | D74: 5.1.01.05 | E74: N/A | F74: 755.00 | G74: 9,060.00 | H74: 62.92 | I74: 39.17 | J74: 0.00 | K74: 0.00 | L74: 857.08
A75: 74 | B75: ASISTENTE ADMINISTRATIVO DE PROVEEDURIA | C75: 05-SERVIDOR/FUNCIONARIO PÚBLICO/OTROS REGÍMENES SECTOR PÚBLICO | D75: 5.1.01.05 | E75: N/A | F75: 622.00 | G75: 7,464.00 | H75: 51.83 | I75: 39.17 | J75: 0.00 | K75: 0.00 | L75: 713.00
A76: 75 | B76: ANALISTA JURIDICO | C76: 05-SERVIDOR/FUNCIONARIO PÚBLICO/OTROS REGÍMENES SECTOR PÚBLICO | D76: 5.1.01.05 | E76: N/A | F76: 820.00 | G76: 9,840.00 | H76: 68.33 | I76: 39.17 | J76: 0.00 | K76: 0.00 | L76: 927.50
A77: 76 | B77: COORDINADOR INSTITUCIONAL | C77: 05-SERVIDOR/FUNCIONARIO PÚBLICO/OTROS REGÍMENES SECTOR PÚBLICO | D77: 5.1.01.05 | E77: N/A | F77: 1670.00 | G77: 20,040.00 | H77: 139.17 | I77: 39.17 | J77: 0.00 | K77: 0.00 | L77: 1848.33
A78: 77 | B78: ANALISTA DE SEGURIDAD Y SALUD OCUPACIONAL | C78: 05-SERVIDOR/FUNCIONARIO PÚBLICO/OTROS REGÍMENES SECTOR PÚBLICO | D78: 7.1.05.10 | E78: N/A | F78: 820.00 | G78: 9,840.00 | H78: 68.33 | I78: 39.17 | J78: 0.00 | K78: 0.00 | L78: 927.50
A79: 78 | B79: CONCEJAL RURAL | C79: 05-SERVIDOR/FUNCIONARIO PÚBLICO/OTROS REGÍMENES SECTOR PÚBLICO | D79: 5.1.01.05 | E79: J/N | F79: 1750.00 | G79: 21,000.00 | H79: 145.83 | I79: 39.17 | J79: 0.00 | K79: 0.00 | L79: 1935.00
A80: 79 | B80: ABOGADA DE COACTIVAS | C80: 05-SERVIDOR/FUNCIONARIO PÚBLICO/OTROS REGÍMENES SECTOR PÚBLICO | D80: 7.1.05.10 | E80: N/A | F80: 820.00 | G80: 9,840.00 | H80: 68.33 | I80: 39.17 | J80: 0.00 | K80: 0.00 | L80: 927.50
A81: 80 | B81: MIEMBRO 3 DE LA JUNTA CANTONAL DE PROTECCION DE DERECHOS | C81: 05-SERVIDOR/FUNCIONARIO PÚBLICO/OTROS REGÍMENES SECTOR PÚBLICO | D81: 7.1.05.10 | E81: N/A | F81: 622.00 | G81: 7,464.00 | H81: 51.83 | I81: =470/12 -> 39.17 | J81: 0.00 | K81: 0.00 | L81: 713.00
A82: 81 | B82: FINANCIERO | C82: 05-SERVIDOR/FUNCIONARIO PÚBLICO/OTROS REGÍMENES SECTOR PÚBLICO | D82: 5.1.01.05 | E82: N/A | F82: 1110.00 | G82: 13,320.00 | H82: 92.50 | I82: 39.17 | J82: 0.00 | K82: 0.00 | L82: 1241.67
A83: 82 | B83: ASISTENTE ADMINISTRATIVO TESORERIA" | C83: 05-SERVIDOR/FUNCIONARIO PÚBLICO/OTROS REGÍMENES SECTOR PÚBLICO | D83: 5.1.01.05 | E83: N/A | F83: 622.00 | G83: 7,464.00 | H83: 51.83 | I83: 39.17 | J83: 0.00 | K83: 0.00 | L83: 713.00
A84: 83 | B84: ADMINISTRADOR DE BIENES | C84: 05-SERVIDOR/FUNCIONARIO PÚBLICO/OTROS REGÍMENES SECTOR PÚBLICO | D84: 5.1.01.05 | E84: N/A | F84: 820.00 | G84: 9,840.00 | H84: 68.33 | I84: 39.17 | J84: 0.00 | K84: 0.00 | L84: 927.50
A85: 84 | B85: ASISTENTE TECNICO DE EDUCACION | C85: 05-SERVIDOR/FUNCIONARIO PÚBLICO/OTROS REGÍMENES SECTOR PÚBLICO | D85: 7.1.01.05 | E85: N/A | F85: 755.00 | G85: 9,060.00 | H85: 62.92 | I85: 39.17 | J85: 0.00 | K85: 0.00 | L85: 857.08
A86: 85 | B86: ASISTENTE ADMINISTRATIVO DE ANEXOS | C86: 05-SERVIDOR/FUNCIONARIO PÚBLICO/OTROS REGÍMENES SECTOR PÚBLICO | D86: 5.1.01.05 | E86: N/A | F86: 622.00 | G86: 7,464.00 | H86: 51.83 | I86: 39.17 | J86: 0.00 | K86: 0.00 | L86: 713.00
A87: 86 | B87: ASISTETE ADMINISTARTIVO DE TALENTO HUMANO | C87: 05-SERVIDOR/FUNCIONARIO PÚBLICO/OTROS REGÍMENES SECTOR PÚBLICO | D87: 5.1.01.05 | E87: J/N | F87: 622.00 | G87: 7,464.00 | H87: 51.83 | I87: 39.17 | J87: 0.00 | K87: 0.00 | L87: 713.00
A88: 87 | B88: ANALISTA DE COMPRAS PUBLICAS | C88: 05-SERVIDOR/FUNCIONARIO PÚBLICO/OTROS REGÍMENES SECTOR PÚBLICO | D88: 5.1.01.05 | E88: N/A | F88: 1110.00 | G88: 13,320.00 | H88: 92.50 | I88: 39.17 | J88: 0.00 | K88: 0.00 | L88: 1241.67
A89: 88 | B89: ASISTENTE ADMINISTRATIVO AULA VIRTUAL BIBLIOTECA Y ACCION SOCIA | C89: 05-SERVIDOR/FUNCIONARIO PÚBLICO/OTROS REGÍMENES SECTOR PÚBLICO | D89: 7.1.01.05 | E89: N/A | F89: 622.00 | G89: 7,464.00 | H89: 51.83 | I89: 39.17 | J89: 0.00 | K89: 0.00 | L89: 713.00
A90: 89 | B90: PROMOTOR AGRICOLA Y MANTENIMIENTO DE AREAS VERDES | C90: 05-SERVIDOR/FUNCIONARIO PÚBLICO/OTROS REGÍMENES SECTOR PÚBLICO | D90: 7.1.05.10 | E90: N/A | F90: 820.00 | G90: 9,840.00 | H90: 68.33 | I90: 39.17 | J90: 0.00 | K90: 0.00 | L90: 927.50
A91: 90 | B91: ANALISTA DE TURISMO | C91: 05-SERVIDOR/FUNCIONARIO PÚBLICO/OTROS REGÍMENES SECTOR PÚBLICO | D91: 7.1.01.05 | E91: N/A | F91: 820.00 | G91: 9,840.00 | H91: 68.33 | I91: 39.17 | J91: 0.00 | K91: 0.00 | L91: 927.50
A92: 91 | B92: ASISTENTE ADMINISTRATIVO DEL REGISTRO DE LA PROPIEDAD 3 | C92: 05-SERVIDOR/FUNCIONARIO PÚBLICO/OTROS REGÍMENES SECTOR PÚBLICO | D92: 5.1.05.10 | E92: N/A | F92: 622.00 | G92: 7,464.00 | H92: 51.83 | I92: 39.17 | J92: 0.00 | K92: 0.00 | L92: 713.00
A93: 92 | B93: AUXILIAR ADMINISTRATIVO DE COACTIVAS | C93: 05-SERVIDOR/FUNCIONARIO PÚBLICO/OTROS REGÍMENES SECTOR PÚBLICO | D93: 5.1.01.05 | E93: N/A | F93: 570.00 | G93: 6,840.00 | H93: 47.50 | I93: 39.17 | J93: 0.00 | K93: 0.00 | L93: 656.67
A94: 93 | B94: ASIT TECNICO DE ACCION SOCIAL, RECREACIÓN CULTURAL Y DEPORTE | C94: 05-SERVIDOR/FUNCIONARIO PÚBLICO/OTROS REGÍMENES SECTOR PÚBLICO | D94: 7.1.05.10 | E94: N/A | F94: 755.00 | G94: 9,060.00 | H94: 62.92 | I94: 39.17 | J94: 0.00 | K94: 0.00 | L94: 857.08
A95: 94 | B95: INSTRUCTOR DE DANZA | C95: 05-SERVIDOR/FUNCIONARIO PÚBLICO/OTROS REGÍMENES SECTOR PÚBLICO | D95: 7.1.05.10 | E95: N/A | F95: 520.00 | G95: 6,240.00 | H95: 43.33 | I95: 39.17 | J95: 0.00 | K95: 0.00 | L95: 602.50
A96: 95 | B96: JEFE DE LA UNIDAD TECNICA MUNICIPAL DE TRANSPORTE TERRESTRE | C96: 05-SERVIDOR/FUNCIONARIO PÚBLICO/OTROS REGÍMENES SECTOR PÚBLICO | D96: 7.1.01.05 | E96: N/A | F96: 1110.00 | G96: 13,320.00 | H96: 92.50 | I96: 39.17 | J96: 0.00 | K96: 0.00 | L96: 1241.67
A97: 96 | B97: EDUCADORA CDI CHUNCHI ROSARIO VALLEJO | C97: 05-SERVIDOR/FUNCIONARIO PÚBLICO/OTROS REGÍMENES SECTOR PÚBLICO | D97: 7.1.05.10 | E97: N/A | F97: 470.00 | G97: 5,640.00 | H97: 39.17 | I97: 39.17 | J97: 0.00 | K97: 0.00 | L97: 548.33
A98: 97 | B98: CONCEJAL RURAL | C98: 05-SERVIDOR/FUNCIONARIO PÚBLICO/OTROS REGÍMENES SECTOR PÚBLICO | D98: 5.1.01.05 | E98: J/N | F98: 1750.00 | G98: =F98*12 -> 21,000.00 | H98: =F98/12 -> 145.83 | I98: 39.17 | J98: 0.00 | K98: 0.00 | L98: =F98+H98+I98 -> 1935.00
A99: 98 | B99: PROMOTOR SOCIAL ATENCION DOMICILIARIA ATENCION ADULTOS MAYORES | C99: 05-SERVIDOR/FUNCIONARIO PÚBLICO/OTROS REGÍMENES SECTOR PÚBLICO | D99: 7.1.05.10 | E99: N/A | F99: 986.00 | G99: 11,832.00 | H99: 82.17 | I99: 39.17 | J99: 0.00 | K99: 0.00 | L99: 1107.33
A100: 99 | B100: EDUCADORA CDI SEMILLITAS DE GONZOL | C100: 05-SERVIDOR/FUNCIONARIO PÚBLICO/OTROS REGÍMENES SECTOR PÚBLICO | D100: 7.1.05.10 | E100: N/A | F100: 470.00 | G100: 5,640.00 | H100: 39.17 | I100: 39.17 | J100: 0.00 | K100: 0.00 | L100: 548.33
A101: 100 | B101: RECAUDADOR 2 | C101: 05-SERVIDOR/FUNCIONARIO PÚBLICO/OTROS REGÍMENES SECTOR PÚBLICO | D101: 5.1.01.05 | E101: N/A | F101: 755.00 | G101: 9,060.00 | H101: 62.92 | I101: 39.17 | J101: 0.00 | K101: 0.00 | L101: 857.08
A102: 101 | B102: DIRECTOR DE OBRAS PUBLICAS | C102: 05-SERVIDOR/FUNCIONARIO PÚBLICO/OTROS REGÍMENES SECTOR PÚBLICO | D102: 7.1.01.05 | E102: N/A | F102: 1670.00 | G102: 20,040.00 | H102: 139.17 | I102: 39.17 | J102: 0.00 | K102: 0.00 | L102: 1848.33
A103: 102 | B103: FISCALIZADOR | C103: 05-SERVIDOR/FUNCIONARIO PÚBLICO/OTROS REGÍMENES SECTOR PÚBLICO | D103: 7.1.05.10 | E103: N/A | F103: 820.00 | G103: 9,840.00 | H103: 68.33 | I103: 39.17 | J103: 0.00 | K103: 0.00 | L103: 927.50
A104: 103 | B104: FACILITADORA AHC | C104: 05-SERVIDOR/FUNCIONARIO PÚBLICO/OTROS REGÍMENES SECTOR PÚBLICO | D104: 7.1.05.10 | E104: N/A | F104: 733.00 | G104: 8,796.00 | H104: 61.08 | I104: 39.17 | J104: 0.00 | K104: 0.00 | L104: 833.25
A105: 104 | B105: CUIDADOR DEL CENTRO GERONTOLOGICO | C105: 05-SERVIDOR/FUNCIONARIO PÚBLICO/OTROS REGÍMENES SECTOR PÚBLICO | D105: 7.1.05.10 | E105: N/A | F105: 675.00 | G105: 8,100.00 | H105: 56.25 | I105: 39.17 | J105: 0.00 | K105: 0.00 | L105: 770.42
A106: 105 | B106: PSICÓLOGA | C106: 05-SERVIDOR/FUNCIONARIO PÚBLICO/OTROS REGÍMENES SECTOR PÚBLICO | D106: 7.1.05.10 | E106: N/A | F106: 986.00 | G106: 11,832.00 | H106: 82.17 | I106: 39.17 | J106: 0.00 | K106: 0.00 | L106: 1107.33
A107: 106 | B107: EDUCADORA CDI SEMILLITAS DEL PUÑAY (LLAGOS) | C107: 05-SERVIDOR/FUNCIONARIO PÚBLICO/OTROS REGÍMENES SECTOR PÚBLICO | D107: 7.1.05.10 | E107: N/A | F107: 470.00 | G107: 5,640.00 | H107: 39.17 | I107: 39.17 | J107: 0.00 | K107: 0.00 | L107: 548.33
A108: 107 | B108: TESORERO | C108: 05-SERVIDOR/FUNCIONARIO PÚBLICO/OTROS REGÍMENES SECTOR PÚBLICO | D108: 5.1.01.05 | E108: N/A | F108: 1110.00 | G108: 13,320.00 | H108: 92.50 | I108: 39.17 | J108: 0.00 | K108: 0.00 | L108: 1241.67
A109: 108 | B109: EDUCADORA CDI GONZOL | C109: 05-SERVIDOR/FUNCIONARIO PÚBLICO/OTROS REGÍMENES SECTOR PÚBLICO | D109: 7.1.05.10 | E109: N/A | F109: 470.00 | G109: 5,640.00 | H109: 39.17 | I109: 39.17 | J109: 0.00 | K109: 0.00 | L109: 548.33
A110: 109 | B110: INSTRUCTOR DE MÚSICA | C110: 05-SERVIDOR/FUNCIONARIO PÚBLICO/OTROS REGÍMENES SECTOR PÚBLICO | D110: 7.1.05.10 | E110: N/A | F110: 520.00 | G110: 6,240.00 | H110: 43.33 | I110: 39.17 | J110: 0.00 | K110: 0.00 | L110: 602.50
A111: 110 | B111: ASISTENTE TECNICO FINANCIERA | C111: 05-SERVIDOR/FUNCIONARIO PÚBLICO/OTROS REGÍMENES SECTOR PÚBLICO | D111: 5.1.01.05 | E111: N/A | F111: 755.00 | G111: 9,060.00 | H111: 62.92 | I111: 39.17 | J111: 0.00 | K111: 0.00 | L111: 857.08
A112: 111 | B112: ASISTENTE ADMINISTRATIVO DEL COMPLEJO TURISTICO LA FAMILIA | C112: 05-SERVIDOR/FUNCIONARIO PÚBLICO/OTROS REGÍMENES SECTOR PÚBLICO | D112: 7.1.05.10 | E112: N/A | F112: 622.00 | G112: 7,464.00 | H112: 51.83 | I112: 39.17 | J112: 0.00 | K112: 0.00 | L112: 713.00
A113: 112 | B113: AUXILIAR DE SERVICIOS SECRETARIA | C113: 05-SERVIDOR/FUNCIONARIO PÚBLICO/OTROS REGÍMENES SECTOR PÚBLICO | D113: 7.1.05.10 | E113: N/A | F113: 470.00 | G113: 5,640.00 | H113: 39.17 | I113: 39.17 | J113: 0.00 | K113: 0.00 | L113: 548.33
A114: 113 | B114: COMISARIO MUNICIPAL | C114: 05-SERVIDOR/FUNCIONARIO PÚBLICO/OTROS REGÍMENES SECTOR PÚBLICO | D114: 5.1.01.05 | E114: N/A | F114: 820.00 | G114: 9,840.00 | H114: 68.33 | I114: 39.17 | J114: 0.00 | K114: 0.00 | L114: 927.50
A115: 114 | B115: AUXILIAR ADMINISTRATIVO DE AVALUOS Y CATÁSTROS | C115: 05-SERVIDOR/FUNCIONARIO PÚBLICO/OTROS REGÍMENES SECTOR PÚBLICO | D115: 7.1.05.10 | E115: N/A | F115: 570.00 | G115: 6,840.00 | H115: 47.50 | I115: 39.17 | J115: 0.00 | K115: 0.00 | L115: 656.67
A116: 115 | B116: EDUCADORA CDI ROSARIO VALLEJO (CHUNCHI) | C116: 05-SERVIDOR/FUNCIONARIO PÚBLICO/OTROS REGÍMENES SECTOR PÚBLICO | D116: 7.1.05.10 | E116: N/A | F116: 470.00 | G116: 5,640.00 | H116: 39.17 | I116: 39.17 | J116: 0.00 | K116: 0.00 | L116: 548.33
A117: 116 | B117: CUIDADORA | C117: 05-SERVIDOR/FUNCIONARIO PÚBLICO/OTROS REGÍMENES SECTOR PÚBLICO | D117: 7.1.05.10 | E117: N/A | F117: 675.00 | G117: 8,100.00 | H117: 56.25 | I117: 39.17 | J117: 0.00 | K117: 0.00 | L117: 770.42
A118: 117 | B118: AUXILIAR DE COCINA | C118: 05-SERVIDOR/FUNCIONARIO PÚBLICO/OTROS REGÍMENES SECTOR PÚBLICO | D118: 7.1.05.10 | E118: N/A | F118: 470.00 | G118: 5,640.00 | H118: 39.17 | I118: 39.17 | J118: 0.00 | K118: 0.00 | L118: 548.33
A119: 118 | B119: ASISTENTE ADMINISTRATIVO B BODEGA | C119: 05-SERVIDOR/FUNCIONARIO PÚBLICO/OTROS REGÍMENES SECTOR PÚBLICO | D119: 5.1.05.10 | E119: N/A | F119: 622.00 | G119: 7,464.00 | H119: 51.83 | I119: 39.17 | J119: 0.00 | K119: 0.00 | L119: 713.00
A120: 119 | B120: FACILITADORA AHC | C120: 05-SERVIDOR/FUNCIONARIO PÚBLICO/OTROS REGÍMENES SECTOR PÚBLICO | D120: 7.1.05.10 | E120: N/A | F120: 733.00 | G120: 8,796.00 | H120: 61.08 | I120: 39.17 | J120: 0.00 | K120: 0.00 | L120: 833.25
A121: 120 | B121: JEFE DE DESARROLLO AGROPECIARIO | C121: 05-SERVIDOR/FUNCIONARIO PÚBLICO/OTROS REGÍMENES SECTOR PÚBLICO | D121: 7.1.01.05 | E121: N/A | F121: 1110.00 | G121: 13,320.00 | H121: 92.50 | I121: 39.17 | J121: 0.00 | K121: 0.00 | L121: 1241.67
A122: 121 | B122: ASISTENTE ADAMINISTRATIVO DE COMISARIA | C122: 05-SERVIDOR/FUNCIONARIO PÚBLICO/OTROS REGÍMENES SECTOR PÚBLICO | D122: 5.1.01.05 | E122: N/A | F122: 622.00 | G122: 7,464.00 | H122: 51.83 | I122: 39.17 | J122: 0.00 | K122: 0.00 | L122: 713.00
A123: 122 | B123: PROSECRETARIA | C123: 05-SERVIDOR/FUNCIONARIO PÚBLICO/OTROS REGÍMENES SECTOR PÚBLICO | D123: 5.1.01.05 | E123: N/A | F123: 755.00 | G123: 9,060.00 | H123: 62.92 | I123: 39.17 | J123: 0.00 | K123: 0.00 | L123: 857.08
A124: 123 | B124: EDUCADORA CDI SEMILLITAS DE GONZOL | C124: 05-SERVIDOR/FUNCIONARIO PÚBLICO/OTROS REGÍMENES SECTOR PÚBLICO | D124: 7.1.05.10 | E124: N/A | F124: 470.00 | G124: 5,640.00 | H124: 39.17 | I124: 39.17 | J124: 0.00 | K124: 0.00 | L124: 548.33
A125: 124 | B125: INSPECTOR SANITARIO | C125: 05-SERVIDOR/FUNCIONARIO PÚBLICO/OTROS REGÍMENES SECTOR PÚBLICO | D125: 7.1.05.10 | E125: N/A | F125: 1110.00 | G125: 13,320.00 | H125: 92.50 | I125: 39.17 | J125: 0.00 | K125: 0.00 | L125: 1241.67
A126: 125 | B126: EDUCADORA CDI SEMILLITAS DEL PUÑAY (LLAGOS) | C126: 05-SERVIDOR/FUNCIONARIO PÚBLICO/OTROS REGÍMENES SECTOR PÚBLICO | D126: 7.1.05.10 | E126: N/A | F126: 470.00 | G126: 5,640.00 | H126: 39.17 | I126: 39.17 | J126: 0.00 | K126: 0.00 | L126: 548.33
A127: 126 | B127: COORDINADOR | C127: 05-SERVIDOR/FUNCIONARIO PÚBLICO/OTROS REGÍMENES SECTOR PÚBLICO | D127: 7.1.05.10 | E127: N/A | F127: 820.00 | G127: 9,840.00 | H127: 68.33 | I127: 39.17 | J127: 0.00 | K127: 0.00 | L127: 927.50
A128: 127 | B128: TÉCNICO PARA LA DIRECCIÓN DE PLANIFICACIÓN PATRIMONIO AVALUOS Y CATÁSTROS | C128: 05-SERVIDOR/FUNCIONARIO PÚBLICO/OTROS REGÍMENES SECTOR PÚBLICO | D128: 7.1.05.10 | E128: N/A | F128: 570.00 | G128: 6,840.00 | H128: 47.50 | I128: 39.17 | J128: 0.00 | K128: 0.00 | L128: 656.67
A129: 128 | B129: SECRETARIA AJECUTIVA PROT.DERECHOS | C129: 05-SERVIDOR/FUNCIONARIO PÚBLICO/OTROS REGÍMENES SECTOR PÚBLICO | D129: 7.1.01.05 | E129: N/A | F129: 820.00 | G129: 9,840.00 | H129: 68.33 | I129: 39.17 | J129: 0.00 | K129: 0.00 | L129: 927.50
A130: 129 | B130: CHOFER DE ALCALDIA | C130: 06-CODIGO DEL TRABAJO - CT | D130: 5.1.01.06 | E130: N/A | F130: 570.00 | G130: =F130*12 -> 6,840.00 | H130: =F130/12 -> 47.50 | I130: 39.17 | J130: 0.00 | K130: 0.00 | L130: =F130+H130+I130 -> 656.67
A131: 130 | B131: OPERADOR RETROEXCAVADORA | C131: 06-CODIGO DEL TRABAJO - CT | D131: 7.1.01.06 | E131: N/A | F131: 708.00 | G131: 8,496.00 | H131: 59.00 | I131: 39.17 | J131: 0.00 | K131: 0.00 | L131: 806.17
A132: 131 | B132: operador tractor agricola | C132: 06-CODIGO DEL TRABAJO - CT | D132: 7.1.01.06 | E132: N/A | F132: 708.00 | G132: 8,496.00 | H132: 59.00 | I132: 39.17 | J132: 0.00 | K132: 0.00 | L132: 806.17
A133: 132 | B133: AUXILIAR DE SERVICIOS | C133: 06-CODIGO DEL TRABAJO - CT | D133: 7.1.01.06 | E133: N/A | F133: 531.00 | G133: 6,372.00 | H133: 44.25 | I133: 39.17 | J133: 0.00 | K133: 0.00 | L133: 614.42
A134: 133 | B134: AUXILIAR DE SERVICIOS DE BARRIDO Y RECOLECCIÓN | C134: 06-CODIGO DEL TRABAJO - CT | D134: 7.1.01.06 | E134: N/A | F134: 470.00 | G134: 5,640.00 | H134: 39.17 | I134: 39.17 | J134: 0.00 | K134: 0.00 | L134: 548.33
A135: 134 | B135: GUARDIA | C135: 06-CODIGO DEL TRABAJO - CT | D135: 7.1.01.06 | E135: N/A | F135: 531.00 | G135: 6,372.00 | H135: 44.25 | I135: 39.17 | J135: 0.00 | K135: 0.00 | L135: 614.42
A136: 135 | B136: BARRENDERO | C136: 06-CODIGO DEL TRABAJO - CT | D136: 7.1.01.06 | E136: N/A | F136: 548.00 | G136: 6,576.00 | H136: 45.67 | I136: 39.17 | J136: 0.00 | K136: 0.00 | L136: 632.83
A137: 136 | B137: AUXILIAR DE SERVICIOS | C137: 06-CODIGO DEL TRABAJO - CT | D137: 7.1.01.06 | E137: N/A | F137: 470.00 | G137: 5,640.00 | H137: 39.17 | I137: 39.17 | J137: 0.00 | K137: 0.00 | L137: 548.33
A138: 137 | B138: AUXILIAR DE SERVICIOS GUARDIANIA | C138: 06-CODIGO DEL TRABAJO - CT | D138: 7.1.01.06 | E138: N/A | F138: 470.00 | G138: 5,640.00 | H138: 39.17 | I138: 39.17 | J138: 0.00 | K138: 0.00 | L138: 548.33
A139: 138 | B139: MATARIFE | C139: 06-CODIGO DEL TRABAJO - CT | D139: 7.1.01.06 | E139: N/A | F139: 470.00 | G139: 5,640.00 | H139: 39.17 | I139: 39.17 | J139: 0.00 | K139: 0.00 | L139: 548.33
A140: 139 | B140: AUXILIAR DE SERVICIOS DE BARRIDO Y RECOLECCIÓN | C140: 06-CODIGO DEL TRABAJO - CT | D140: 7.1.01.06 | E140: N/A | F140: 470.00 | G140: 5,640.00 | H140: 39.17 | I140: 39.17 | J140: 0.00 | K140: 0.00 | L140: 548.33
A141: 140 | B141: CHOFER VEHICULOS LIVIANOS | C141: 06-CODIGO DEL TRABAJO - CT | D141: 5.1.01.06 | E141: N/A | F141: 566.00 | G141: 6,792.00 | H141: 47.17 | I141: =470/12 -> 39.17 | J141: 0.00 | K141: 0.00 | L141: 652.33
A142: 141 | B142: CHOFER | C142: 06-CODIGO DEL TRABAJO - CT | D142: 7.1.01.06 | E142: N/A | F142: 570.00 | G142: =F142*12 -> 6,840.00 | H142: 47.50 | I142: 39.17 | J142: 0.00 | K142: 0.00 | L142: =F142+H142+I142 -> 656.67
A143: 142 | B143: AUXILIAR DE SERVICIOS | C143: 06-CODIGO DEL TRABAJO - CT | D143: 7.1.01.06 | E143: N/A | F143: 531.00 | G143: 6,372.00 | H143: =F143/12 -> 44.25 | I143: 39.17 | J143: 0.00 | K143: 0.00 | L143: 614.42
A144: 143 | B144: ALBAÑIL | C144: 06-CODIGO DEL TRABAJO - CT | D144: 7.1.01.06 | E144: N/A | F144: 548.00 | G144: 6,576.00 | H144: 45.67 | I144: 39.17 | J144: 0.00 | K144: 0.00 | L144: 632.83
A145: 144 | B145: AUXILIAR DE SERVICIOS DE BARRIDO Y RECOLECCIÓN | C145: 06-CODIGO DEL TRABAJO - CT | D145: 7.1.01.06 | E145: N/A | F145: 470.00 | G145: 5,640.00 | H145: 39.17 | I145: 39.17 | J145: 0.00 | K145: 0.00 | L145: 548.33
A146: 145 | B146: AUXILIAR DE SERVICIOS DE BARRIDO Y RECOLECCIÓN | C146: 06-CODIGO DEL TRABAJO - CT | D146: 7.1.01.06 | E146: N/A | F146: 470.00 | G146: 5,640.00 | H146: 39.17 | I146: 39.17 | J146: 0.00 | K146: 0.00 | L146: 548.33
A147: 146 | B147: AUXILIAR DE SERVICIOS GUARDIANIA | C147: 06-CODIGO DEL TRABAJO - CT | D147: 7.1.01.06 | E147: N/A | F147: 470.00 | G147: 5,640.00 | H147: 39.17 | I147: 39.17 | J147: 0.00 | K147: 0.00 | L147: 548.33
A148: 147 | B148: AUXILIAR CITADOR | C148: 06-CODIGO DEL TRABAJO - CT | D148: 7.1.01.06 | E148: N/A | F148: 531.00 | G148: 6,372.00 | H148: 44.25 | I148: 39.17 | J148: 0.00 | K148: 0.00 | L148: 614.42
A149: 148 | B149: GUARDIAN | C149: 06-CODIGO DEL TRABAJO - CT | D149: 7.1.01.06 | E149: N/A | F149: 531.00 | G149: 6,372.00 | H149: 44.25 | I149: 39.17 | J149: 0.00 | K149: 0.00 | L149: 614.42
A150: 149 | B150: CHOFER E | C150: 06-CODIGO DEL TRABAJO - CT | D150: 5.1.01.06 | E150: N/A | F150: 584.00 | G150: 7,008.00 | H150: 48.67 | I150: 39.17 | J150: 0.00 | K150: 0.00 | L150: 671.83
A151: 150 | B151: LAVADORA DE VISCERAS | C151: 06-CODIGO DEL TRABAJO - CT | D151: 7.1.01.06 | E151: N/A | F151: 470.00 | G151: 5,640.00 | H151: 39.17 | I151: 39.17 | J151: 0.00 | K151: 0.00 | L151: 548.33
A152: 151 | B152: CHOFER | C152: 06-CODIGO DEL TRABAJO - CT | D152: 7.1.01.06 | E152: N/A | F152: 570.00 | G152: 6,840.00 | H152: 47.50 | I152: 39.17 | J152: 0.00 | K152: 0.00 | L152: 656.67
A153: 152 | B153: LAVADOR DE VISCERAS | C153: 06-CODIGO DEL TRABAJO - CT | D153: 7.1.01.06 | E153: N/A | F153: 470.00 | G153: 5,640.00 | H153: 39.17 | I153: 39.17 | J153: 0.00 | K153: 0.00 | L153: 548.33
A154: 153 | B154: CHOFER DE VOLQUETA | C154: 06-CODIGO DEL TRABAJO - CT | D154: 7.1.01.06 | E154: N/A | F154: 584.00 | G154: 7,008.00 | H154: 48.67 | I154: 39.17 | J154: 0.00 | K154: 0.00 | L154: 671.83
A155: 154 | B155: MATARIFE | C155: 06-CODIGO DEL TRABAJO - CT | D155: 7.1.01.06 | E155: N/A | F155: 470.00 | G155: 5,640.00 | H155: 39.17 | I155: 39.17 | J155: 0.00 | K155: 0.00 | L155: 548.33
A156: 155 | B156: CHOFER | C156: 06-CODIGO DEL TRABAJO - CT | D156: 7.1.01.06 | E156: N/A | F156: 570.00 | G156: 6,840.00 | H156: 47.50 | I156: 39.17 | J156: 0.00 | K156: 0.00 | L156: 656.67
A157: 156 | B157: GUARDIAN PARQUE 3 | C157: 06-CODIGO DEL TRABAJO - CT | D157: 7.1.01.06 | E157: N/A | F157: 531.00 | G157: 6,372.00 | H157: 44.25 | I157: 39.17 | J157: 0.00 | K157: 0.00 | L157: 614.42
A158: 157 | B158: LAVADOR DE VISCERAS | C158: 06-CODIGO DEL TRABAJO - CT | D158: 7.1.01.06 | E158: N/A | F158: 470.00 | G158: 5,640.00 | H158: 39.17 | I158: 39.17 | J158: 0.00 | K158: 0.00 | L158: 548.33
A159: 158 | B159: MATARIFE | C159: 06-CODIGO DEL TRABAJO - CT | D159: 7.1.01.06 | E159: N/A | F159: 470.00 | G159: 5,640.00 | H159: 39.17 | I159: 39.17 | J159: 0.00 | K159: 0.00 | L159: 548.33
A160: 159 | B160: AYUDANTE DE LA PLATAFORMA | C160: 06-CODIGO DEL TRABAJO - CT | D160: 7.1.01.06 | E160: N/A | F160: 470.00 | G160: 5,640.00 | H160: 39.17 | I160: 39.17 | J160: 0.00 | K160: 0.00 | L160: 548.33
A161: 160 | B161: AYUDANTE DE MAQUINARIA | C161: 06-CODIGO DEL TRABAJO - CT | D161: 7.1.01.06 | E161: J/N | F161: 470.00 | G161: 5,640.00 | H161: 39.17 | I161: 39.17 | J161: 0.00 | K161: 0.00 | L161: 548.33
A162: 161 | B162: GUARDIA MUNICIPAL | C162: 06-CODIGO DEL TRABAJO - CT | D162: 7.1.01.06 | E162: N/A | F162: 470.00 | G162: 5,640.00 | H162: 39.17 | I162: 39.17 | J162: 0.00 | K162: 0.00 | L162: 548.33
A163: 162 | B163: AUXILIAR DE SERVICIOS | C163: 06-CODIGO DEL TRABAJO - CT | D163: 7.1.01.06 | E163: N/A | F163: 470.00 | G163: 5,640.00 | H163: 39.17 | I163: 39.17 | J163: 0.00 | K163: 0.00 | L163: 548.33
A164: 163 | B164: CHOFER ALCALDÍA | C164: 06-CODIGO DEL TRABAJO - CT | D164: 7.1.01.06 | E164: N/A | F164: 470.00 | G164: 5,640.00 | H164: 39.17 | I164: 39.17 | J164: 0.00 | K164: 0.00 | L164: 548.33
A165: 164 | B165: POLICIA MUNICIPAL | C165: 06-CODIGO DEL TRABAJO - CT | D165: 7.1.01.06 | E165: N/A | F165: 566.00 | G165: 6,792.00 | H165: 47.17 | I165: 39.17 | J165: 0.00 | K165: 0.00 | L165: 652.33
A166: 165 | B166: AUXILIAR DE SERVICIOS DEL CEMENTERIO | C166: 06-CODIGO DEL TRABAJO - CT | D166: 7.1.01.06 | E166: N/A | F166: 470.00 | G166: 5,640.00 | H166: 39.17 | I166: 39.17 | J166: 0.00 | K166: 0.00 | L166: 548.33
A167: 166 | B167: BARRENDERO 6 | C167: 06-CODIGO DEL TRABAJO - CT | D167: 7.1.01.06 | E167: N/A | F167: 531.00 | G167: 6,372.00 | H167: 44.25 | I167: 39.17 | J167: 0.00 | K167: 0.00 | L167: 614.42
A168: 167 | B168: MATARIFE | C168: 06-CODIGO DEL TRABAJO - CT | D168: 7.1.01.06 | E168: N/A | F168: 470.00 | G168: 5,640.00 | H168: 39.17 | I168: 39.17 | J168: 0.00 | K168: 0.00 | L168: 548.33
A169: 168 | B169: OPERADOR MOTONIVELADORA | C169: 06-CODIGO DEL TRABAJO - CT | D169: 7.1.01.06 | E169: N/A | F169: 708.00 | G169: 8,496.00 | H169: 59.00 | I169: 39.17 | J169: 0.00 | K169: 0.00 | L169: 806.17
A170: 169 | B170: OPERADOR MINICARGADORA | C170: 06-CODIGO DEL TRABAJO - CT | D170: 7.1.01.06 | E170: N/A | F170: 708.00 | G170: 8,496.00 | H170: 59.00 | I170: 39.17 | J170: 0.00 | K170: 0.00 | L170: 806.17
A171: 170 | B171: AUXILIAR DE SERVICIOS | C171: 06-CODIGO DEL TRABAJO - CT | D171: 7.1.01.06 | E171: N/A | F171: 528.00 | G171: 6,336.00 | H171: 44.00 | I171: 39.17 | J171: 0.00 | K171: 0.00 | L171: 611.17
A172: 171 | B172: AUXILIAR DE SERVICIOS | C172: 06-CODIGO DEL TRABAJO - CT | D172: 7.1.01.06 | E172: N/A | F172: 470.00 | G172: 5,640.00 | H172: 39.17 | I172: 39.17 | J172: 0.00 | K172: 0.00 | L172: 548.33
A173: 172 | B173: AUXILIAR DE SERVICIOS COMPLEJO LA FAMILIA | C173: 06-CODIGO DEL TRABAJO - CT | D173: 7.1.01.06 | E173: N/A | F173: 531.00 | G173: 6,372.00 | H173: 44.25 | I173: 39.17 | J173: 0.00 | K173: 0.00 | L173: 614.42
A174: 173 | B174: OPERADOR DEL TRACTOR | C174: 06-CODIGO DEL TRABAJO - CT | D174: 7.1.01.06 | E174: N/A | F174: 708.00 | G174: 8,496.00 | H174: 59.00 | I174: 39.17 | J174: 0.00 | K174: 0.00 | L174: 806.17
A175: 174 | B175: AYUDANTE DEL TALLER SOLDADOR 1 | C175: 06-CODIGO DEL TRABAJO - CT | D175: 7.1.01.06 | E175: N/A | F175: 470.00 | G175: 5,640.00 | H175: 39.17 | I175: 39.17 | J175: 0.00 | K175: 0.00 | L175: 548.33
A176: 175 | B176: AUXILIAR DE ARCHIVO | C176: 06-CODIGO DEL TRABAJO - CT | D176: 7.1.01.06 | E176: N/A | F176: 531.00 | G176: 6,372.00 | H176: 44.25 | I176: 39.17 | J176: 0.00 | K176: 0.00 | L176: 614.42
A177: 176 | B177: CHOFER 8 | C177: 06-CODIGO DEL TRABAJO - CT | D177: 7.1.01.06 | E177: N/A | F177: 566.00 | G177: 6,792.00 | H177: 47.17 | I177: 39.17 | J177: 0.00 | K177: 0.00 | L177: 652.33
A178: 177 | B178: CHOFER MUNICIPAL 2 | C178: 06-CODIGO DEL TRABAJO - CT | D178: 7.1.01.06 | E178: N/A | F178: 584.00 | G178: 7,008.00 | H178: 48.67 | I178: 39.17 | J178: 0.00 | K178: 0.00 | L178: 671.83
A179: 178 | B179: LAVADOR DE VISCERAS | C179: 06-CODIGO DEL TRABAJO - CT | D179: 7.1.01.06 | E179: N/A | F179: 470.00 | G179: 5,640.00 | H179: 39.17 | I179: 39.17 | J179: 0.00 | K179: 0.00 | L179: 548.33
A180: 179 | B180: GUARDIAN MUNICIPAL | C180: 06-CODIGO DEL TRABAJO - CT | D180: 7.1.01.06 | E180: N/A | F180: 531.00 | G180: 6,372.00 | H180: 44.25 | I180: 39.17 | J180: 0.00 | K180: 0.00 | L180: 614.42
A181: 180 | B181: CHOFER DE CAMIÓN RECOLECTOR | C181: 06-CODIGO DEL TRABAJO - CT | D181: 7.1.01.06 | E181: N/A | F181: 570.00 | G181: 6,840.00 | H181: 47.50 | I181: 39.17 | J181: 0.00 | K181: 0.00 | L181: 656.67
A182: 181 | B182: CHOFER 2 | C182: 06-CODIGO DEL TRABAJO - CT | D182: 7.1.01.06 | E182: N/A | F182: 566.00 | G182: =F182*12 -> 6,792.00 | H182: =F182/12 -> 47.17 | I182: 39.17 | J182: 0.00 | K182: 0.00 | L182: =F182+H182+I182 -> 652.33
A183: 182 | B183: AUXILIAR DE SERVICIOS BARRIDO Y RECOLECCION | C183: 06-CODIGO DEL TRABAJO - CT | D183: 7.1.01.06 | E183: N/A | F183: 584.00 | G183: 7,008.00 | H183: 48.67 | I183: 39.17 | J183: 0.00 | K183: 0.00 | L183: 671.83
A184: 183 | B184: ALBAÑIL 5 | C184: 06-CODIGO DEL TRABAJO - CT | D184: 7.1.01.06 | E184: N/A | F184: 540.00 | G184: 6,480.00 | H184: 45.00 | I184: 39.17 | J184: 0.00 | K184: 0.00 | L184: 624.17
A185: 184 | B185: AUXILIAR DE SERVICIO DE BARRIDO Y RECOLECCIÓN | C185: 06-CODIGO DEL TRABAJO - CT | D185: 7.1.01.06 | E185: N/A | F185: 470.00 | G185: 5,640.00 | H185: 39.17 | I185: 39.17 | J185: 0.00 | K185: 0.00 | L185: 548.33
A186: 185 | B186: AUXILIAR DE SERVICIOS DE BARRIDO Y RECOLECCIÓN | C186: 06-CODIGO DEL TRABAJO - CT | D186: 7.1.01.06 | E186: N/A | F186: 470.00 | G186: 5,640.00 | H186: 39.17 | I186: 39.17 | J186: 0.00 | K186: 0.00 | L186: 548.33
A187: 186 | B187: AYUDANTE DEL TALLER 2 | C187: 06-CODIGO DEL TRABAJO - CT | D187: 7.1.01.06 | E187: N/A | F187: 470.00 | G187: 5,640.00 | H187: 39.17 | I187: 39.17 | J187: 0.00 | K187: 0.00 | L187: 548.33
A188: 187 | B188: Chofer de volqueta | C188: 06-CODIGO DEL TRABAJO - CT | D188: 7.1.01.06 | E188: N/A | F188: 584.00 | G188: 7,008.00 | H188: 48.67 | I188: 39.17 | J188: 0.00 | K188: 0.00 | L188: 671.83
A189: 188 | B189: AUXILIAR DE SERVICIOS DE BARRIDO Y RECOLECCIÓN | C189: 06-CODIGO DEL TRABAJO - CT | D189: 7.1.01.06 | E189: N/A | F189: 470.00 | G189: 5,640.00 | H189: 39.17 | I189: 39.17 | J189: 0.00 | K189: 0.00 | L189: 548.33
A190: 189 | B190: OPERADOR CARGADORA | C190: 06-CODIGO DEL TRABAJO - CT | D190: 7.1.01.06 | E190: N/A | F190: 708.00 | G190: 8,496.00 | H190: 59.00 | I190: 39.17 | J190: 0.00 | K190: 0.00 | L190: 806.17
A191: 190 | B191: AUXILIAR DE SERVICIOS DE RECOLECTOR | C191: 06-CODIGO DEL TRABAJO - CT | D191: 7.1.01.06 | E191: N/A | F191: 470.00 | G191: 5,640.00 | H191: 39.17 | I191: 39.17 | J191: 0.00 | K191: 0.00 | L191: 548.33
A192: 191 | B192: AUXILIAR DE SERVICIOS BARRENDERO | C192: 06-CODIGO DEL TRABAJO - CT | D192: 7.1.01.06 | E192: N/A | F192: 470.00 | G192: 5,640.00 | H192: 39.17 | I192: 39.17 | J192: 0.00 | K192: 0.00 | L192: 548.33
A193: 192 | B193: AYUDANTE DEL TRATOR DE ORUGA | C193: 06-CODIGO DEL TRABAJO - CT | D193: 7.1.01.06 | E193: N/A | F193: 470.00 | G193: 5,640.00 | H193: 39.17 | I193: 39.17 | J193: 0.00 | K193: 0.00 | L193: 548.33
A194: 193 | B194: AUXILIAR SERVICIOS | C194: 06-CODIGO DEL TRABAJO - CT | D194: 7.1.01.06 | E194: N/A | F194: 531.00 | G194: 6,372.00 | H194: 44.25 | I194: 39.17 | J194: 0.00 | K194: 0.00 | L194: 614.42
A195: 194 | B195: AUXILIAR DE SERVICIOS DE BARRIDO Y RECOLECCIÓN | C195: 06-CODIGO DEL TRABAJO - CT | D195: 7.1.01.06 | E195: N/A | F195: 470.00 | G195: 5,640.00 | H195: 39.17 | I195: 39.17 | J195: 0.00 | K195: 0.00 | L195: 548.33
A196: 195 | B196: BARRENDERO 6 | C196: 06-CODIGO DEL TRABAJO - CT | D196: 7.1.01.06 | E196: N/A | F196: 531.00 | G196: 6,372.00 | H196: 44.25 | I196: 39.17 | J196: 0.00 | K196: 0.00 | L196: 614.42
A197: 196 | B197: AUXILIAR DE SERVICIOS LIMPEZA | C197: 06-CODIGO DEL TRABAJO - CT | D197: 7.1.01.06 | E197: N/A | F197: 470.00 | G197: =F197*12 -> 5,640.00 | H197: =F197/12 -> 39.17 | I197: 39.17 | J197: 0.00 | K197: 0.00 | L197: =F197+H197+I197 -> 548.33
A198: 197 | B198: GUARDIAN DE PARQUES | C198: 06-CODIGO DEL TRABAJO - CT | D198: 7.1.01.06 | E198: N/A | F198: 531.00 | G198: 6,372.00 | H198: 44.25 | I198: 39.17 | J198: 0.00 | K198: 0.00 | L198: 614.42
A199: 198 | B199: GUARDIA DEL TALLER | C199: 06-CODIGO DEL TRABAJO - CT | D199: 7.1.01.06 | E199: N/A | F199: 470.00 | G199: 5,640.00 | H199: 39.17 | I199: 39.17 | J199: 0.00 | K199: 0.00 | L199: 548.33
A200: 199 | B200: CHOFER 9 | C200: 06-CODIGO DEL TRABAJO - CT | D200: 7.1.01.06 | E200: N/A | F200: 584.00 | G200: 7,008.00 | H200: 48.67 | I200: 39.17 | J200: 0.00 | K200: 0.00 | L200: 671.83
... 17 more rows

Sheet 1.Metadatos (remuneración)
A1: FECHA ACTUALIZACIÓN DE LA INFORMACIÓN | B1: 2025-11-30
A2: PERIODICIDAD DE ACTUALIZACIÓN DE LA INFORMACIÓN | B2: MENSUAL
A3: UNIDAD POSEEDORA DE LA INFORMACION | B3: ÁREA ADMINISTRATIVA FINANCIERA
A4: PERSONA RESPONSABLE DE LA UNIDAD POSEEDORA DE LA INFORMACIÓN | B4: LIC. MARITZA ALVARADO BRITO
A5: CORREO ELECTRÓNICO DE LA PERSONA RESPONSABLE DE LA UNIDAD POSEEDORA DE LA INFORMACIÓN | B5: gadmch.financiero@gmail.com
A6: NÚMERO TELEFÓNICO DE LA PERSONA RESPONSABLE DE LA UNIDAD POSEEDORA DE LA INFORMACIÓN | B6: (02)936-244 ext 108
A7: LICENCIA | B7: CC-BY-4.0

Sheet 1.Diccionario (remuneración)
A1: Institución | B1: GAD MUNICIPAL DEL CANTÓN CHUNCHI
A2: Descripción | B2: Remuneraciones salariales, licencia de servicio y comisión de servicio
A3: Nombre del Campo | B3: Descripción del campo
A4: Numeración | B4: Número secuencial que identifica cada línea de los datos
A5: Puesto Institucional | B5: Puesto ocupado por la persona servidora pública correspondiente
A6: Régimen laboral al que pertenece | B6: Conjunto de leyes, normas y regulaciones que rigen la relación de trabajo
A7: Número de partida presupuestaria | B7: Asignación presupuestaria específica que se destina para cubrir los gastos relacionados con el salario
A8: Grado jerárquico o escala al que pertenece el puesto | B8: Posición relativa del puesto dentro de una estructura organizativa o jerárquica
A9: Remuneración mensual unificada | B9: Salario mensual correspondiente al pago de la persona servidora pública
A10: Remuneración unificada (anual) | B10: Salario anual correspondiente al pago de la persona servidora pública
A11: Décimo Tercera Remuneración | B11: Salario adicional equivalente a un mes de salario completo, calculado sobre la base del promedio mensual de las remuneraciones percibidas por la persona servidora pública durante el año fiscal.
A12: Décima Cuarta Remuneración | B12: Salario adicional equivalente a un mes de salario completo, que se paga a la persona servidora pública en dos cuotas durante el año
A13: Horas suplementarias y extraordinarias | B13: Horas trabajadas que exceden la jornada laboral establecida en el contrato de trabajo, pero que no superan el límite legal establecido
A14: Encargos y subrogaciones | B14: Situaciones en las que un empleado asume temporalmente las responsabilidades y funciones de otra persona funcionaria o de un cargo superior debido a circunstancias específicas.
A15: Total ingresos adicionales | B15: Suma total de los ingresos que la persona servidora pública recibe además de su salario base o remuneración principal.
